[Event "Late-Titled-Tuesday-Blitz-August-29-2023"]
[Site "Chess.com"]
[Date "2023.08.29"]
[Round "1"]
[White "Biregina"]
[Black "fastestmindalive"]
[Result "0-1"]
[WhiteElo "2423"]
[BlackElo "2742"]
[TimeControl "180+1"]
[EndTime "14:07:37 PDT"]
[Termination "fastestmindalive won on time"]

1. d4 {[%clk 0:02:54.7]} 1... Nf6 {[%clk 0:02:59.3]} 2. Nf3 {[%clk 0:02:52]}
2... e6 {[%clk 0:02:58]} 3. b3 {[%clk 0:02:51]} 3... b5 {[%clk 0:02:26.8]} 4. e3
{[%clk 0:02:47.8]} 4... a6 {[%clk 0:02:26.4]} 5. Bd3 {[%clk 0:02:45.4]} 5... Bb7
{[%clk 0:02:26.4]} 6. Nbd2 {[%clk 0:02:42.7]} 6... c5 {[%clk 0:02:25.6]} 7. Bb2
{[%clk 0:02:42.2]} 7... Be7 {[%clk 0:02:24.6]} 8. O-O {[%clk 0:02:40.3]} 8...
O-O {[%clk 0:02:23]} 9. c4 {[%clk 0:02:15.3]} 9... bxc4 {[%clk 0:02:12.4]} 10.
bxc4 {[%clk 0:02:11.2]} 10... Qc7 {[%clk 0:01:54.9]} 11. Qc2 {[%clk 0:01:59.3]}
11... h6 {[%clk 0:01:46.5]} 12. Rab1 {[%clk 0:01:49.3]} 12... Nc6 {[%clk
0:01:41.1]} 13. Bc3 {[%clk 0:01:46.7]} 13... Nb4 {[%clk 0:01:32.2]} 14. Bxb4
{[%clk 0:01:45.5]} 14... cxb4 {[%clk 0:01:33.1]} 15. e4 {[%clk 0:01:32.3]} 15...
d6 {[%clk 0:01:13.1]} 16. Rxb4 {[%clk 0:01:25.8]} 16... d5 {[%clk 0:01:13.2]}
17. c5 {[%clk 0:01:19.8]} 17... dxe4 {[%clk 0:01:11]} 18. Nxe4 {[%clk 0:01:18]}
18... Nd5 {[%clk 0:01:07.8]} 19. Rb2 {[%clk 0:01:15.9]} 19... Nf4 {[%clk
0:01:05.6]} 20. Qd2 {[%clk 0:00:52.2]} 20... Rab8 {[%clk 0:00:36.6]} 21. Rfb1
{[%clk 0:00:43.7]} 21... Nxd3 {[%clk 0:00:35.9]} 22. Qxd3 {[%clk 0:00:43.1]}
22... Bd5 {[%clk 0:00:36.6]} 23. Nc3 {[%clk 0:00:39.1]} 23... Ba8 {[%clk
0:00:30.2]} 24. Nd2 {[%clk 0:00:08.2]} 24... Rbd8 {[%clk 0:00:21.6]} 25. Nde4
{[%clk 0:00:05.8]} 25... f5 {[%clk 0:00:16.9]} 26. Nd6 {[%clk 0:00:05.9]} 26...
Bxd6 {[%clk 0:00:16.2]} 27. cxd6 {[%clk 0:00:06.8]} 27... Qxd6 {[%clk
0:00:16.5]} 28. Rb6 {[%clk 0:00:06.7]} 28... Qf4 {[%clk 0:00:09.9]} 29. f3
{[%clk 0:00:05.5]} 29... Rxd4 {[%clk 0:00:08.6]} 30. Qe2 {[%clk 0:00:05.7]}
30... e5 {[%clk 0:00:05.9]} 31. Rxa6 {[%clk 0:00:05.2]} 31... Rdd8 {[%clk
0:00:05.5]} 32. Qf2 {[%clk 0:00:05.2]} 32... Rd2 {[%clk 0:00:04.7]} 33. Ne2
{[%clk 0:00:05]} 33... Qc4 {[%clk 0:00:04.8]} 34. Rxa8 {[%clk 0:00:02.4]} 34...
Rxa8 {[%clk 0:00:04.1]} 35. Re1 {[%clk 0:00:02.6]} 35... Raxa2 {[%clk
0:00:03.1]} 36. Qb6 {[%clk 0:00:01.6]} 36... Rxe2 {[%clk 0:00:03.5]} 0-1

[Event "Late-Titled-Tuesday-Blitz-August-29-2023"]
[Site "Chess.com"]
[Date "2023.08.29"]
[Round "1"]
[White "Siemba"]
[Black "Msb2"]
[Result "0-1"]
[WhiteElo "2504"]
[BlackElo "3020"]
[TimeControl "180+1"]
[EndTime "14:07:38 PDT"]
[Termination "Msb2 won by resignation"]

1. d4 {[%clk 0:03:00.2]} 1... d5 {[%clk 0:02:59.5]} 2. c4 {[%clk 0:03:00.3]}
2... e6 {[%clk 0:03:00.2]} 3. Nf3 {[%clk 0:03:01]} 3... Nf6 {[%clk 0:03:00.5]}
4. Nc3 {[%clk 0:03:01.6]} 4... Bb4 {[%clk 0:03:00.5]} 5. Qa4+ {[%clk 0:03:01.7]}
5... Nc6 {[%clk 0:03:00.4]} 6. e3 {[%clk 0:03:02.4]} 6... O-O {[%clk 0:03:00.8]}
7. Bd2 {[%clk 0:03:03.1]} 7... Qe8 {[%clk 0:03:01.2]} 8. a3 {[%clk 0:03:02.4]}
8... Bxc3 {[%clk 0:03:00.2]} 9. Bxc3 {[%clk 0:03:03.3]} 9... Nxd4 {[%clk
0:03:00.8]} 10. Qd1 {[%clk 0:03:04]} 10... Nxf3+ {[%clk 0:02:53.9]} 11. gxf3
{[%clk 0:03:04.9]} 11... Qe7 {[%clk 0:02:24.6]} 12. Qd4 {[%clk 0:03:04.2]} 12...
c5 {[%clk 0:02:11.6]} 13. Qh4 {[%clk 0:03:01.3]} 13... e5 {[%clk 0:02:08.5]} 14.
cxd5 {[%clk 0:02:46.2]} 14... Nxd5 {[%clk 0:02:09.4]} 15. Qxe7 {[%clk
0:02:46.5]} 15... Nxe7 {[%clk 0:02:08.4]} 16. Bxe5 {[%clk 0:02:47]} 16... b6
{[%clk 0:02:01.1]} 17. Bd6 {[%clk 0:02:44.5]} 17... Ng6 {[%clk 0:01:17.5]} 18.
Bxf8 {[%clk 0:02:42.4]} 18... Kxf8 {[%clk 0:01:18.4]} 19. f4 {[%clk 0:02:38.9]}
19... Bb7 {[%clk 0:01:17.3]} 20. Rg1 {[%clk 0:02:39.1]} 20... Nh4 {[%clk
0:01:16.3]} 21. O-O-O {[%clk 0:02:28.4]} 21... Bc6 {[%clk 0:00:57.4]} 22. Rg4
{[%clk 0:02:10]} 22... Nf5 {[%clk 0:00:55.2]} 23. Bg2 {[%clk 0:02:03.1]} 23...
Bxg2 {[%clk 0:00:53.8]} 24. Rxg2 {[%clk 0:02:04]} 24... g6 {[%clk 0:00:52.6]}
25. Rgg1 {[%clk 0:01:51]} 25... Ke7 {[%clk 0:00:52.6]} 26. Rd5 {[%clk
0:01:51.3]} 26... Rc8 {[%clk 0:00:47.1]} 27. Rgd1 {[%clk 0:01:50.9]} 27... Rc7
{[%clk 0:00:47.8]} 28. Kc2 {[%clk 0:01:39.1]} 28... h5 {[%clk 0:00:47.9]} 29.
Kc3 {[%clk 0:01:36.4]} 29... Ke6 {[%clk 0:00:45.3]} 30. Re5+ {[%clk 0:01:36]}
30... Kf6 {[%clk 0:00:45.8]} 31. Kc4 {[%clk 0:01:28]} 31... Ne7 {[%clk
0:00:39.9]} 32. Kb5 {[%clk 0:01:17.1]} 32... Nf5 {[%clk 0:00:36.1]} 33. a4
{[%clk 0:01:10.8]} 33... c4 {[%clk 0:00:33.2]} 34. Re4 {[%clk 0:00:48]} 34... c3
{[%clk 0:00:32]} 35. Rc4 {[%clk 0:00:48.2]} 35... c2 {[%clk 0:00:13]} 36. Rxc2
{[%clk 0:00:10.2]} 36... Rxc2 {[%clk 0:00:13.9]} 37. e4 {[%clk 0:00:10.8]} 37...
Nh4 {[%clk 0:00:12.8]} 38. b4 {[%clk 0:00:09]} 38... Rxf2 {[%clk 0:00:12.2]} 39.
Ka6 {[%clk 0:00:06.7]} 39... Rxf4 {[%clk 0:00:10.2]} 40. Re1 {[%clk 0:00:05.4]}
40... Nf3 {[%clk 0:00:09.9]} 41. Re2 {[%clk 0:00:05.6]} 41... Nd4 {[%clk
0:00:09.3]} 42. Re3 {[%clk 0:00:05.5]} 42... Nc2 {[%clk 0:00:09.9]} 43. Rb3
{[%clk 0:00:05.8]} 43... Rxe4 {[%clk 0:00:10.1]} 44. Kxa7 {[%clk 0:00:05.7]}
44... Nxb4 {[%clk 0:00:09.3]} 45. Kxb6 {[%clk 0:00:05.6]} 45... Nd5+ {[%clk
0:00:09.8]} 46. Kc5 {[%clk 0:00:05.8]} 46... Rxa4 {[%clk 0:00:09.5]} 47. Ra3
{[%clk 0:00:06.1]} 47... Rxa3 {[%clk 0:00:09.7]} 0-1

[Event "Late-Titled-Tuesday-Blitz-August-29-2023"]
[Site "Chess.com"]
[Date "2023.08.29"]
[Round "1"]
[White "Alexei_Gubajdullin"]
[Black "MeisterJabo"]
[Result "1-0"]
[WhiteElo "2620"]
[BlackElo "2315"]
[TimeControl "180+1"]
[EndTime "14:07:40 PDT"]
[Termination "Alexei_Gubajdullin won on time"]

1. d4 {[%clk 0:02:59.5]} 1... Nf6 {[%clk 0:02:58.7]} 2. Nf3 {[%clk 0:02:59.8]}
2... e6 {[%clk 0:02:40]} 3. Bf4 {[%clk 0:03:00.1]} 3... d5 {[%clk 0:02:39.4]} 4.
e3 {[%clk 0:03:00.1]} 4... Bd6 {[%clk 0:02:40.1]} 5. Bg3 {[%clk 0:03:00]} 5...
O-O {[%clk 0:02:40.2]} 6. Nbd2 {[%clk 0:03:00]} 6... c5 {[%clk 0:02:40.3]} 7. c3
{[%clk 0:03:00]} 7... Qc7 {[%clk 0:02:38.2]} 8. dxc5 {[%clk 0:02:59.1]} 8...
Qxc5 {[%clk 0:02:38.2]} 9. b4 {[%clk 0:02:59.3]} 9... Qc7 {[%clk 0:02:37.5]} 10.
c4 {[%clk 0:02:59.5]} 10... Nc6 {[%clk 0:02:32]} 11. Bxd6 {[%clk 0:02:53.1]}
11... Qxd6 {[%clk 0:02:23.5]} 12. c5 {[%clk 0:02:52.8]} 12... Qc7 {[%clk
0:02:22]} 13. b5 {[%clk 0:02:51.7]} 13... Ne5 {[%clk 0:02:20.4]} 14. Nxe5 {[%clk
0:02:51.7]} 14... Qxe5 {[%clk 0:02:21.3]} 15. Rc1 {[%clk 0:02:51.6]} 15... Qb2
{[%clk 0:01:52]} 16. Qc2 {[%clk 0:02:46.5]} 16... Qb4 {[%clk 0:01:47.4]} 17. Qc3
{[%clk 0:02:39.9]} 17... Qa4 {[%clk 0:01:27.1]} 18. Be2 {[%clk 0:02:33.9]} 18...
Bd7 {[%clk 0:01:17.7]} 19. Qb3 {[%clk 0:02:04.7]} 19... Qa5 {[%clk 0:01:14.3]}
20. a3 {[%clk 0:02:02.5]} 20... a6 {[%clk 0:00:56.9]} 21. bxa6 {[%clk
0:01:40.3]} 21... bxa6 {[%clk 0:00:53.7]} 22. Qb4 {[%clk 0:01:08.4]} 22... Qxb4
{[%clk 0:00:53.5]} 23. axb4 {[%clk 0:01:08.4]} 23... Rfb8 {[%clk 0:00:54.4]} 24.
Rb1 {[%clk 0:01:08.4]} 24... Bb5 {[%clk 0:00:50.2]} 25. Nf3 {[%clk 0:01:04.8]}
25... Ne4 {[%clk 0:00:47.1]} 26. Bxb5 {[%clk 0:01:02.7]} 26... Rxb5 {[%clk
0:00:47.7]} 27. Nd4 {[%clk 0:01:01.8]} 27... Rb7 {[%clk 0:00:41.2]} 28. c6
{[%clk 0:00:43.4]} 28... Rb6 {[%clk 0:00:36.2]} 29. f4 {[%clk 0:00:42.9]} 29...
Rab8 {[%clk 0:00:27.6]} 30. Rb3 {[%clk 0:00:40.4]} 30... Rxb4 {[%clk 0:00:12.7]}
31. Rxb4 {[%clk 0:00:26.4]} 31... Rxb4 {[%clk 0:00:13.6]} 32. O-O {[%clk
0:00:26.4]} 32... Rc4 {[%clk 0:00:12.7]} 33. Ra1 {[%clk 0:00:24.4]} 33... Nc5
{[%clk 0:00:10.2]} 34. Rb1 {[%clk 0:00:21.1]} 34... f6 {[%clk 0:00:08]} 35. c7
{[%clk 0:00:20]} 35... Nb3 {[%clk 0:00:04.7]} 36. Rxb3 {[%clk 0:00:19]} 36...
Rxc7 {[%clk 0:00:05.3]} 37. Nxe6 {[%clk 0:00:19.4]} 37... Rc1+ {[%clk
0:00:05.5]} 38. Kf2 {[%clk 0:00:19.5]} 38... Rc2+ {[%clk 0:00:06.4]} 39. Kf3
{[%clk 0:00:19.6]} 39... Kf7 {[%clk 0:00:07.3]} 40. Nd4 {[%clk 0:00:19.8]} 40...
Ra2 {[%clk 0:00:07.6]} 41. Rb7+ {[%clk 0:00:19.3]} 41... Kg6 {[%clk 0:00:05.1]}
42. f5+ {[%clk 0:00:19.2]} 42... Kh6 {[%clk 0:00:04.3]} 43. h4 {[%clk
0:00:19.2]} 43... Ra3 {[%clk 0:00:01.9]} 44. g4 {[%clk 0:00:18.9]} 44... g5
{[%clk 0:00:02.4]} 45. h5 {[%clk 0:00:17]} 45... a5 {[%clk 0:00:01.8]} 46. Ne6
{[%clk 0:00:16.9]} 46... a4 {[%clk 0:00:02.7]} 47. Nf8 {[%clk 0:00:16.9]} 47...
Rxe3+ {[%clk 0:00:01.5]} 48. Kxe3 {[%clk 0:00:16.9]} 1-0

[Event "Late-Titled-Tuesday-Blitz-August-29-2023"]
[Site "Chess.com"]
[Date "2023.08.29"]
[Round "1"]
[White "Rinqed222"]
[Black "rdarruda"]
[Result "1/2-1/2"]
[WhiteElo "2254"]
[BlackElo "2556"]
[TimeControl "180+1"]
[EndTime "14:07:41 PDT"]
[Termination "Game drawn by repetition"]

1. e4 {[%clk 0:03:00.9]} 1... c5 {[%clk 0:02:59.1]} 2. Nc3 {[%clk 0:03:00.3]}
2... Nc6 {[%clk 0:02:54.3]} 3. Bb5 {[%clk 0:02:59.1]} 3... e6 {[%clk 0:02:54.4]}
4. Bxc6 {[%clk 0:02:51]} 4... bxc6 {[%clk 0:02:53.5]} 5. d3 {[%clk 0:02:51.2]}
5... f6 {[%clk 0:02:53.2]} 6. f4 {[%clk 0:02:51.2]} 6... d5 {[%clk 0:02:53.2]}
7. Nf3 {[%clk 0:02:51.1]} 7... Bd6 {[%clk 0:02:53.1]} 8. O-O {[%clk 0:02:39.7]}
8... Ne7 {[%clk 0:02:53]} 9. e5 {[%clk 0:02:21.7]} 9... Bc7 {[%clk 0:02:52.6]}
10. Qe2 {[%clk 0:02:05.3]} 10... O-O {[%clk 0:02:50.7]} 11. b3 {[%clk
0:02:02.3]} 11... f5 {[%clk 0:02:49.2]} 12. Ba3 {[%clk 0:02:00.6]} 12... Bb6
{[%clk 0:02:46.9]} 13. Kh1 {[%clk 0:01:57]} 13... Ng6 {[%clk 0:02:46]} 14. g3
{[%clk 0:01:56.5]} 14... Qe7 {[%clk 0:02:44.6]} 15. Na4 {[%clk 0:01:51.2]} 15...
Ba6 {[%clk 0:02:40.6]} 16. c4 {[%clk 0:01:51]} 16... Rfd8 {[%clk 0:02:32.7]} 17.
d4 {[%clk 0:01:33.4]} 17... dxc4 {[%clk 0:02:29.6]} 18. bxc4 {[%clk 0:01:30.6]}
18... Qe8 {[%clk 0:02:16]} 19. Nxc5 {[%clk 0:01:25.8]} 19... Bxc5 {[%clk
0:02:14.8]} 20. Bxc5 {[%clk 0:01:26.7]} 20... Rab8 {[%clk 0:02:13.4]} 21. Rab1
{[%clk 0:01:22.8]} 21... Qd7 {[%clk 0:02:11.1]} 22. Qc2 {[%clk 0:01:15.8]} 22...
Rb7 {[%clk 0:02:01.5]} 23. Qa4 {[%clk 0:01:10.9]} 23... Rdb8 {[%clk 0:01:59.8]}
24. Rb3 {[%clk 0:01:09.6]} 24... Rxb3 {[%clk 0:01:56.5]} 25. axb3 {[%clk
0:01:08.5]} 25... Qb7 {[%clk 0:01:56.1]} 26. Ra1 {[%clk 0:00:47.3]} 26... Qxb3
{[%clk 0:01:54.6]} 27. Qxb3 {[%clk 0:00:48]} 27... Rxb3 {[%clk 0:01:53.8]} 28.
Rxa6 {[%clk 0:00:40.4]} 28... Rxf3 {[%clk 0:01:52.7]} 29. Rxc6 {[%clk 0:00:35]}
29... a5 {[%clk 0:01:50.6]} 30. Rxe6 {[%clk 0:00:26]} 30... Rc3 {[%clk
0:01:49.9]} 31. Ra6 {[%clk 0:00:25.8]} 31... Rxc4 {[%clk 0:01:48.6]} 32. Rxa5
{[%clk 0:00:26.4]} 32... Rc2 {[%clk 0:01:48]} 33. d5 {[%clk 0:00:24.3]} 33... h5
{[%clk 0:01:42.8]} 34. e6 {[%clk 0:00:23.1]} 34... h4 {[%clk 0:01:42.4]} 35. e7
{[%clk 0:00:20.5]} 35... Kf7 {[%clk 0:01:41.5]} 36. Ra8 {[%clk 0:00:19.4]} 36...
Nxe7 {[%clk 0:01:41.5]} 37. Ra7 {[%clk 0:00:19.7]} 37... Rxc5 {[%clk 0:01:40.2]}
38. d6 {[%clk 0:00:19.8]} 38... h3 {[%clk 0:01:38.6]} 39. Rxe7+ {[%clk
0:00:19.3]} 39... Kf6 {[%clk 0:01:39.2]} 40. Re1 {[%clk 0:00:19]} 40... Rd5
{[%clk 0:01:37]} 41. Kg1 {[%clk 0:00:19.1]} 41... Rxd6 {[%clk 0:01:36.5]} 42.
Kf2 {[%clk 0:00:19.8]} 42... Rd2+ {[%clk 0:01:36.5]} 43. Re2 {[%clk 0:00:20.3]}
43... Rd1 {[%clk 0:01:34.6]} 44. Ra2 {[%clk 0:00:19.8]} 44... Rh1 {[%clk
0:01:34.4]} 45. Kf3 {[%clk 0:00:19.5]} 45... Ke6 {[%clk 0:01:33.4]} 46. Re2+
{[%clk 0:00:18.7]} 46... Kd6 {[%clk 0:01:31.8]} 47. g4 {[%clk 0:00:19.3]} 47...
g6 {[%clk 0:01:28.1]} 48. gxf5 {[%clk 0:00:19.6]} 48... gxf5 {[%clk 0:01:29]}
49. Kg3 {[%clk 0:00:20.3]} 49... Rf1 {[%clk 0:01:28.7]} 50. Rf2 {[%clk
0:00:16.9]} 50... Rg1+ {[%clk 0:01:27.1]} 51. Kxh3 {[%clk 0:00:16.9]} 51... Kd5
{[%clk 0:01:28]} 52. Rg2 {[%clk 0:00:14.9]} 52... Rf1 {[%clk 0:01:27.6]} 53. Kg3
{[%clk 0:00:15.5]} 53... Ke4 {[%clk 0:01:25.6]} 54. Re2+ {[%clk 0:00:14.8]}
54... Kd3 {[%clk 0:01:25.7]} 55. Re5 {[%clk 0:00:15.2]} 55... Rg1+ {[%clk
0:01:24.7]} 56. Kf2 {[%clk 0:00:15.5]} 56... Rh1 {[%clk 0:01:24.7]} 57. Kg2
{[%clk 0:00:16.1]} 57... Ra1 {[%clk 0:01:23.2]} 58. Rxf5 {[%clk 0:00:16.3]}
58... Ke4 {[%clk 0:01:23.8]} 59. Rf8 {[%clk 0:00:15.9]} 59... Ra2+ {[%clk
0:01:22.9]} 60. Kg3 {[%clk 0:00:16.5]} 60... Ra3+ {[%clk 0:01:23.2]} 61. Kg4
{[%clk 0:00:16.6]} 61... Ra1 {[%clk 0:01:23.6]} 62. Re8+ {[%clk 0:00:13.6]}
62... Kd5 {[%clk 0:01:23.7]} 63. f5 {[%clk 0:00:13.8]} 63... Rg1+ {[%clk
0:01:22.8]} 64. Kf4 {[%clk 0:00:14.1]} 64... Rf1+ {[%clk 0:01:22.6]} 65. Kg5
{[%clk 0:00:14.7]} 65... Rh1 {[%clk 0:01:22.3]} 66. h4 {[%clk 0:00:13.8]} 66...
Rg1+ {[%clk 0:01:21]} 67. Kh5 {[%clk 0:00:13.1]} 67... Rf1 {[%clk 0:01:20.8]}
68. Kg6 {[%clk 0:00:13.6]} 68... Rg1+ {[%clk 0:01:20.8]} 69. Kf7 {[%clk
0:00:14.1]} 69... Rh1 {[%clk 0:01:20.3]} 70. Rh8 {[%clk 0:00:11.7]} 70... Ke5
{[%clk 0:01:20.3]} 71. f6 {[%clk 0:00:12.2]} 71... Rf1 {[%clk 0:01:17.7]} 72.
Rh6 {[%clk 0:00:12.4]} 72... Kd6 {[%clk 0:01:18.3]} 73. Kg7 {[%clk 0:00:12.5]}
73... Ke6 {[%clk 0:01:18]} 74. f7+ {[%clk 0:00:12.1]} 74... Ke7 {[%clk
0:01:18.2]} 75. Ra6 {[%clk 0:00:04.2]} 75... Rg1+ {[%clk 0:01:18]} 76. Kh6
{[%clk 0:00:04.3]} 76... Kxf7 {[%clk 0:01:18.4]} 77. Ra7+ {[%clk 0:00:04.3]}
77... Kf6 {[%clk 0:01:18.8]} 78. Ra6+ {[%clk 0:00:05]} 78... Kf5 {[%clk
0:01:19]} 79. Ra5+ {[%clk 0:00:05.4]} 79... Kf6 {[%clk 0:01:19.1]} 80. Ra6+
{[%clk 0:00:05.2]} 80... Kf5 {[%clk 0:01:18.5]} 81. Ra5+ {[%clk 0:00:05.8]}
81... Kf6 {[%clk 0:01:18.8]} 82. Ra6+ {[%clk 0:00:06.3]} 1/2-1/2

[Event "Late-Titled-Tuesday-Blitz-August-29-2023"]
[Site "Chess.com"]
[Date "2023.08.29"]
[Round "1"]
[White "Levanzovsky"]
[Black "psychokiller48"]
[Result "0-1"]
[WhiteElo "2390"]
[BlackElo "2690"]
[TimeControl "180+1"]
[EndTime "14:07:45 PDT"]
[Termination "psychokiller48 won by checkmate"]

1. e4 {[%clk 0:03:00.9]} 1... e5 {[%clk 0:02:59.7]} 2. Nf3 {[%clk 0:03:01.2]}
2... Nc6 {[%clk 0:02:59.4]} 3. Bb5 {[%clk 0:03:01.7]} 3... a6 {[%clk 0:02:59.2]}
4. Ba4 {[%clk 0:03:02.2]} 4... Nf6 {[%clk 0:02:59.3]} 5. O-O {[%clk 0:03:02.2]}
5... Be7 {[%clk 0:02:59.2]} 6. Re1 {[%clk 0:03:02.8]} 6... b5 {[%clk 0:02:59.7]}
7. Bb3 {[%clk 0:03:03.3]} 7... O-O {[%clk 0:03:00.3]} 8. a4 {[%clk 0:03:03.5]}
8... Rb8 {[%clk 0:02:59.8]} 9. axb5 {[%clk 0:03:02.4]} 9... axb5 {[%clk
0:02:59.5]} 10. d3 {[%clk 0:03:02.9]} 10... d6 {[%clk 0:02:58.8]} 11. h3 {[%clk
0:03:03.5]} 11... h6 {[%clk 0:02:59.2]} 12. Nc3 {[%clk 0:03:03.8]} 12... Re8
{[%clk 0:02:59.7]} 13. Nd5 {[%clk 0:03:04.4]} 13... Bf8 {[%clk 0:02:59]} 14. c3
{[%clk 0:03:04.6]} 14... Be6 {[%clk 0:02:57]} 15. Ra6 {[%clk 0:02:46.4]} 15...
Bxd5 {[%clk 0:02:55]} 16. exd5 {[%clk 0:02:45.8]} 16... Ne7 {[%clk 0:02:54.9]}
17. d4 {[%clk 0:02:46.4]} 17... e4 {[%clk 0:02:50.1]} 18. Nd2 {[%clk 0:02:46.7]}
18... Nexd5 {[%clk 0:02:50.5]} 19. Bxd5 {[%clk 0:02:46.1]} 19... Nxd5 {[%clk
0:02:50]} 20. Nxe4 {[%clk 0:02:42.7]} 20... Re6 {[%clk 0:02:15.1]} 21. Qh5
{[%clk 0:02:28.8]} 21... Nb6 {[%clk 0:01:17.3]} 22. Re2 {[%clk 0:01:34.2]} 22...
Qd7 {[%clk 0:01:02.5]} 23. Ng3 {[%clk 0:01:24.2]} 23... g6 {[%clk 0:00:54.2]}
24. Qg4 {[%clk 0:01:16.5]} 24... Rbe8 {[%clk 0:00:49.1]} 25. Rxb6 {[%clk
0:00:56.3]} 25... cxb6 {[%clk 0:00:47.4]} 26. d5 {[%clk 0:00:56.7]} 26... Rxe2
{[%clk 0:00:29.6]} 27. Qxd7 {[%clk 0:00:56.7]} 27... Re1+ {[%clk 0:00:30.3]} 28.
Kh2 {[%clk 0:00:56.2]} 28... R8e7 {[%clk 0:00:30.8]} 29. Qxb5 {[%clk 0:00:48.3]}
29... Rxc1 {[%clk 0:00:31.4]} 30. Qxb6 {[%clk 0:00:48.7]} 30... Ree1 {[%clk
0:00:29.2]} 31. Qb8 {[%clk 0:00:32.5]} 31... h5 {[%clk 0:00:25.1]} 32. h4 {[%clk
0:00:25.8]} 32... Kg7 {[%clk 0:00:25.5]} 33. f3 {[%clk 0:00:20.6]} 33... Be7
{[%clk 0:00:25.1]} 34. Qb4 {[%clk 0:00:18.5]} 34... Bf6 {[%clk 0:00:24.1]} 35.
Qxd6 {[%clk 0:00:15.4]} 35... Be5 {[%clk 0:00:24.3]} 36. Qxe5+ {[%clk
0:00:09.1]} 36... Rxe5 {[%clk 0:00:25.2]} 37. d6 {[%clk 0:00:09.4]} 37... Rd1
{[%clk 0:00:22.6]} 38. Ne4 {[%clk 0:00:09.7]} 38... f5 {[%clk 0:00:19.1]} 39.
Ng5 {[%clk 0:00:03.6]} 39... Rxd6 {[%clk 0:00:18.9]} 40. Kg3 {[%clk 0:00:04]}
40... Rb5 {[%clk 0:00:17.6]} 41. Kf4 {[%clk 0:00:04.9]} 41... Rxb2 {[%clk
0:00:17.4]} 42. c4 {[%clk 0:00:05.5]} 42... Rb4 {[%clk 0:00:16.7]} 43. Kg3
{[%clk 0:00:05.1]} 43... Rxc4 {[%clk 0:00:16.8]} 44. f4 {[%clk 0:00:05.8]} 44...
Rd3+ {[%clk 0:00:16.7]} 45. Kh2 {[%clk 0:00:04.8]} 45... Re3 {[%clk 0:00:17]}
46. g3 {[%clk 0:00:04.7]} 46... Rc2+ {[%clk 0:00:17]} 47. Kh3 {[%clk 0:00:05.6]}
47... Ree2 {[%clk 0:00:17.3]} 48. Nf3 {[%clk 0:00:06.3]} 48... Kf6 {[%clk
0:00:16]} 49. g4 {[%clk 0:00:03.7]} 49... fxg4+ {[%clk 0:00:16.2]} 50. Kg3
{[%clk 0:00:04.6]} 50... Rg2# {[%clk 0:00:15.1]} 0-1

[Event "Late-Titled-Tuesday-Blitz-August-29-2023"]
[Site "Chess.com"]
[Date "2023.08.29"]
[Round "1"]
[White "enriquetejedor"]
[Black "dodoucb"]
[Result "0-1"]
[WhiteElo "2688"]
[BlackElo "2431"]
[TimeControl "180+1"]
[EndTime "14:07:50 PDT"]
[Termination "dodoucb won on time"]

1. e4 {[%clk 0:02:36.8]} 1... c6 {[%clk 0:02:59.8]} 2. Nc3 {[%clk 0:02:32.7]}
2... d5 {[%clk 0:03:00.7]} 3. d4 {[%clk 0:02:33.1]} 3... dxe4 {[%clk 0:03:00.2]}
4. Nxe4 {[%clk 0:02:34]} 4... Bf5 {[%clk 0:03:00.2]} 5. Ng3 {[%clk 0:02:31.4]}
5... Bg6 {[%clk 0:03:00.6]} 6. Nf3 {[%clk 0:02:32.3]} 6... Nd7 {[%clk
0:03:00.4]} 7. Bd3 {[%clk 0:02:30.8]} 7... Ngf6 {[%clk 0:03:00]} 8. O-O {[%clk
0:02:13.3]} 8... e6 {[%clk 0:02:57.4]} 9. b3 {[%clk 0:02:08.9]} 9... Qc7 {[%clk
0:02:55.7]} 10. Bb2 {[%clk 0:02:06.6]} 10... Be7 {[%clk 0:02:48]} 11. c4 {[%clk
0:01:58.5]} 11... Rd8 {[%clk 0:02:37]} 12. Qc2 {[%clk 0:01:44.6]} 12... O-O
{[%clk 0:02:31.4]} 13. Rad1 {[%clk 0:01:41.5]} 13... Rfe8 {[%clk 0:02:29.4]} 14.
Rfe1 {[%clk 0:01:30.7]} 14... a5 {[%clk 0:02:28.3]} 15. Bc3 {[%clk 0:01:21.6]}
15... Bb4 {[%clk 0:02:24]} 16. Bxg6 {[%clk 0:00:59.4]} 16... hxg6 {[%clk
0:02:23.1]} 17. Qd2 {[%clk 0:01:00.1]} 17... Qb6 {[%clk 0:02:12.6]} 18. Qb2
{[%clk 0:00:54.1]} 18... Bxc3 {[%clk 0:01:42.5]} 19. Qxc3 {[%clk 0:00:53.5]}
19... Qb4 {[%clk 0:01:43.4]} 20. Qc2 {[%clk 0:00:50]} 20... c5 {[%clk
0:01:24.2]} 21. Rd2 {[%clk 0:00:43.1]} 21... cxd4 {[%clk 0:01:19.9]} 22. Rxd4
{[%clk 0:00:37.3]} 22... Nc5 {[%clk 0:00:59.4]} 23. Red1 {[%clk 0:00:35]} 23...
Rxd4 {[%clk 0:00:58.9]} 24. Rxd4 {[%clk 0:00:35.7]} 24... e5 {[%clk 0:00:58.6]}
25. Rd1 {[%clk 0:00:34.5]} 25... e4 {[%clk 0:00:57.7]} 26. Nd4 {[%clk 0:00:34]}
26... e3 {[%clk 0:00:47.7]} 27. fxe3 {[%clk 0:00:34.9]} 27... Rxe3 {[%clk
0:00:47.6]} 28. Nf3 {[%clk 0:00:34]} 28... Ne6 {[%clk 0:00:39.9]} 29. Qd2 {[%clk
0:00:31.9]} 29... Qxd2 {[%clk 0:00:31.6]} 30. Rxd2 {[%clk 0:00:32.8]} 30... Rc3
{[%clk 0:00:30.8]} 31. h3 {[%clk 0:00:29]} 31... g5 {[%clk 0:00:30.4]} 32. Ne2
{[%clk 0:00:27.4]} 32... Re3 {[%clk 0:00:28.3]} 33. Ned4 {[%clk 0:00:21.7]}
33... Ne4 {[%clk 0:00:24.3]} 34. Rd1 {[%clk 0:00:16.3]} 34... Nf4 {[%clk
0:00:20.4]} 35. Kh2 {[%clk 0:00:08.2]} 35... Kh7 {[%clk 0:00:17.1]} 36. Rg1
{[%clk 0:00:03.9]} 36... Kg6 {[%clk 0:00:16.6]} 37. Rd1 {[%clk 0:00:03.6]} 37...
f6 {[%clk 0:00:16.4]} 38. Rg1 {[%clk 0:00:03.1]} 38... Ne2 {[%clk 0:00:11]} 39.
Nxe2 {[%clk 0:00:02.7]} 39... Rxe2 {[%clk 0:00:11.9]} 40. a3 {[%clk 0:00:02.5]}
40... f5 {[%clk 0:00:10.7]} 41. b4 {[%clk 0:00:02.6]} 41... g4 {[%clk
0:00:10.9]} 42. hxg4 {[%clk 0:00:02.7]} 42... fxg4 {[%clk 0:00:11.8]} 43. Ne5+
{[%clk 0:00:03]} 43... Kf5 {[%clk 0:00:11.2]} 44. Nd3 {[%clk 0:00:02.1]} 44...
Re3 {[%clk 0:00:08.1]} 45. Rf1+ {[%clk 0:00:02.3]} 45... Kg5 {[%clk 0:00:08.1]}
46. Nf4 {[%clk 0:00:02.5]} 46... g3+ {[%clk 0:00:07.9]} 47. Kg1 {[%clk
0:00:01.2]} 47... Kg4 {[%clk 0:00:06.1]} 0-1